{"text_format":"5","workbook":"xlsx","n_sheets":1,"sheets":["ამბულატორია"],"not_rendered":{"defined_names":2},"read":"whole","date_system":"1900"}

{"sheet":"ამბულატორია","index":0,"n_rows":159,"n_cols":9,"rows_kept":159,"merged":[[0,7,0,8],[1,1,1,8],[2,0,4,0],[2,1,4,1],[2,2,4,2],[2,3,3,3],[2,4,2,5],[2,6,2,7],[2,8,3,8]]}
[{"$nulls":7},"ფორმა №2"]
[null,"სოფ. ორსანტია ამბულატორიის სამუშაოების ხარჯთაღიცხვა"]
["№","სამუშაოსა და მასალის დასახელება","განზ.","რაოდენ.","მასალა",null,"ხელფასი",null,"ჯამი"]
[{"$nulls":4},"ერთეული","სულ","ერთეული","სულ"]
[{"$nulls":3},"ა","ბ","გ=ა*ბ","დ","ე=ა*დ","ვ=გ+ე"]
[null,"სადემონტაჟო სამუშაოები"]
[null,"არსებული ტიხრების დემონტაჟი სისქით 15სმ (დრანკა)","მ2",{"v":26,"d":"26.00"},{"$nulls":3},{"$f":"D7*G7","v":0},{"$f":"F7+H7","v":0}]
[null,"იატაკიდან დაზიანებული ფილებისა და მოჭიმვის დემონტაჟი","მ2",{"v":52.8,"d":"52.80"},{"$nulls":3},{"$f":"D8*G8","v":0},{"$f":"F8+H8","v":0}]
[null,"კედლებიდან დაზიანებული ნალესის დემონტაჟი","მ2",{"v":278,"d":"278.00"},{"$nulls":3},0,0]
[null,"დაზიანებული ხის კარ-ფანჯრის დემონტაჟი","მ2",{"v":35.4,"d":"35.40"},{"$nulls":3},0,0]
[null,"აგურის კედლის ძირის გამოტეხვა არმატურის სამონტაჟოდ სიღრმით 10სმ","მ",{"v":38,"d":"38.00"},{"$nulls":3},0,0]
[null,"აგურის კედლის დემონტაჟი","მ3",{"v":0.5,"d":"0.50"},{"$nulls":3},0,0]
[null,"სამშენებლო ნაგვისა და ნარჩენების გამოზიდვა,დატვირთვა ავტოთვითმცლელზე და ტრანსპორტირება ნაგავსაყრელზე","მ3",{"v":25,"d":"25.00"},{"$nulls":3},0,0]
[null,"სამონტაჟო სამუშაოები"]
[null,"იატაკები"]
[null,"რკინა-ბეტონის ფილის მოწყობა სისქით 10სმ","მ2",{"v":45.3,"d":"45.30"},{"$nulls":3},0,0]
[null,"არმატურა 10მმ","ტონა",0.31,null,{"$f":"D17*E17","v":0},null,null,0]
[null,"ბეტონი ბ25","მ3",{"v":4.7,"d":"4.70"},null,0,null,null,0]
[null,"სხვა მასალა","ლარი",{"v":1,"d":"1.00"},null,0,null,null,0]
[null,"ნიშნულის გასწორება ქვა-ღორღით","მ2",{"v":53.8,"d":"53.80"},{"$nulls":3},0,0]
[null,"ნამტვრევი ქვა-ღორღი ფრაქცია 10-20","მ3",{"v":5,"d":"5.00"},null,0,null,null,0]
[null,"იატაკის მოჭიმვა ქვიშა-ცემენტის ხსნარით","მ2",{"v":98.1,"d":"98.10"},{"$nulls":3},0,0]
[null,"ქვიშა-ცემენტის ხსნარი მ100","მ3",{"v":7,"d":"7.00"},null,0,null,null,0]
[null,"იატაკზე ხელოვნური გრანიტის ფილების მოწყობა","მ2",{"v":98,"d":"98.00"},{"$nulls":3},0,0]
[null,"ხელოვნური გრანიტის ფილა არაპრიალა ზედაპირით, ფერი და ზომა შეთანხმდეს დამკვეთთან","მ2",{"v":103,"d":"103.00"},null,0,null,null,0]
[null,"წებო-ცემენტი 25კგ","ცალი",{"v":33,"d":"33.00"},null,0,null,null,0]
[null,"დეკორატიული ცემენტი","კგ",{"v":10,"d":"10.00"},null,0,null,null,0]
[null,"სხვა მასალა","ლარი",{"v":1,"d":"1.00"},null,0,null,null,0]
[null,"ხელოვნური გრანიტის პლინტუსის მოწყობა სიმაღლით 6სმ","მ",{"v":105,"d":"105.00"},{"$nulls":3},0,0]
[null,"ხელოვნური გრანიტის ფილა არაპრიალა ზედაპირით, ფერი და ზომა შეთანხმდეს დამკვეთთან","მ2",{"v":7,"d":"7.00"},null,0,null,null,0]
[null,"წებო-ცემენტი 25კგ","ცალი",{"v":2,"d":"2.00"},null,0,null,null,0]
[null,"დეკორატიული ცემენტი","კგ",{"v":1,"d":"1.00"},null,0,null,null,0]
[null,"სხვა მასალა","ლარი",{"v":1,"d":"1.00"},null,0,null,null,0]
[null,"კედლები და ტიხრები"]
[null,"ტიხრების მოწყობა თაბაშირ-მუყაოს ფილებით ხმის იაზოლაციით","მ2",{"v":40,"d":"40.00"},{"$nulls":3},{"$f":"D35*G35","v":0},{"$f":"F35+H35","v":0}]
[null,"თაბაშირ-მუყაოს ფილა ნესტგამძლე ლითონის კარკასით","მ2",{"$f":"D35*1.1","v":{"v":44,"d":"44.00"}},null,{"$f":"D36*E36","v":0},null,null,0]
[null,"ქვაბამბა სისქით 50მმ","მ2",{"v":44,"d":"44.00"},null,{"$f":"D37*E37","v":0},null,null,0]
[null,"კედლებზე თაბაშირ-მუყაოს ფილების მოწყობა მიწებებით","მ2",{"v":278,"d":"278.00"},{"$nulls":3},{"$f":"D38*G38","v":0},0]
[null,"ნესტგამძლე თაბაშირ-მუყაოს ფილა","მ2",{"v":300,"d":"300.00"},null,{"$f":"D39*E39","v":0},null,null,0]
[null,"იაპი გიპსი 25კგ","ცალი",{"v":51,"d":"51.00"},null,{"$f":"D40*E40","v":0},null,null,0]
[null,"კედლების დამუშავება ფითხით და შეღებვა წყალემულსიის საღებავით (ფერი შეთანხმდეს დამკვეთთან)","მ2",{"v":358,"d":"358.00"},{"$nulls":3},{"$f":"D41*G41","v":0},0]
[null,"საფითხნი მასალა","კგ",{"v":283,"d":"283.00"},null,{"$f":"D42*E42","v":0},null,null,0]
[null,"საღებავი წყალემულსიის","კგ",{"v":218,"d":"218.00"},null,{"$f":"D43*E43","v":0},null,null,0]
[null,"სხვა მასალა","ლარი",{"v":1,"d":"1.00"},null,{"$f":"D44*E44","v":0},null,null,0]
[null,"რკინის კარის დამუშავება და შეღებვა","მ2",{"v":9.7,"d":"9.70"},{"$nulls":3},{"$f":"D45*G45","v":0},0]
[null,"ზეთოვანი საღებავი","კგ",{"v":3.5,"d":"3.50"},null,{"$f":"D46*E46","v":0},null,null,0]
[null,"გამხსნელი","კგ",{"v":1,"d":"1.00"},null,{"$f":"D47*E47","v":0},null,null,0]
[null,"კედლებზე კაფელის მოწყობა","მ2",{"v":23,"d":"23.00"},{"$nulls":3},{"$f":"D48*G48","v":0},0]
[null,"კაფელი (ფერი და ზომა შეთანხმდეს დამკვეთთან)","მ2",{"v":25,"d":"25.00"},null,{"$f":"D49*E49","v":0},null,null,0]
[null,"წებო-ცემენტი 25კგ","ცალი",{"v":7,"d":"7.00"},null,{"$f":"D50*E50","v":0},null,null,0]
[null,"დეკორატიული ცემენტი","კგ",{"v":2,"d":"2.00"},null,{"$f":"D51*E51","v":0},null,null,0]
[null,"სხვა მასალა","ლარი",{"v":1,"d":"1.00"},null,{"$f":"D52*E52","v":0},null,null,0]
[null,"ღიობები"]
[null,"მეტალოპლასტმასის ფანჯრების დამზადება და მონტაჟი 115*218-4ცალი ;140*230-2ცალი; 60*60-1ცალი; 81*213-1ცალი; 60*213-1ცალი; რაფებით, ერთი ფრთის გაღებით, მწერებისგან დამცავი ბადით","მ2",19.83,null,0,null,0,0]
[null,"კარის ღიობის ამოშენება სამშენებლო ბლოკით 20*20*40","მ2",6.75,{"$nulls":3},0,0]
[null,"ბლოკი 20*20*40","ცალი",{"v":85,"d":"85.00"},null,0,null,null,0]
[null,"ქვიშა-ცემენტის ხსნარი მ150","მ3",{"v":0.4,"d":"0.40"},null,0,null,null,0]
[null,"კარის ღიობის არსებული ნიშნულის (2.9მ)მოყვანა 2.20მ ნიშნულზე თაბაშირ-მუყაოთი","ცალი",{"v":5,"d":"5.00"},{"$nulls":3},0,0]
[null,"თაბაშირ-მუყაოს ფილა ნესტგამძლე ლითონის კარკასით","მ2",{"$f":"6.95*1.1","v":{"v":7.6450000000000005,"d":"7.65"}},null,0,null,null,0]
[null,"მდფ-ის კარის მონტაჟი 220*0.9 თეთრი ფარის საკეტითა და პეტლებით","ცალი",{"v":7,"d":"7.00"},null,0,null,0,0]
[null,"მდფ-ის კარის მონტაჟი 220*1.30 თეთრი ფარის საკეტითა და პეტლებით","ცალი",{"v":1,"d":"1.00"},null,0,null,0,0]
[null,"ფანჯრის ფაიების ამოლესვა ქვიშა-ცემენტის ხსნარით","მ",{"v":57.5,"d":"57.50"},{"$nulls":3},0,0]
[null,"ქვიშა-ცემენტის ხსნარი","მ3",{"v":1,"d":"1.00"},null,0,null,null,0]
[null,"რკინის კარის დამზადება და მონტაჟი","მ2",4.84,{"$nulls":3},0,0]
[null,"რკინის კარი 2.2*0.85 საკეტებით","ცალი",{"v":1,"d":"1.00"},null,0,null,null,0]
[null,"რკინის კარი 1.35*2.2 საკეტებით","ცალი",{"v":1,"d":"1.00"},null,0,null,null,0]
[null,"სხვა მასალა","ლარი",{"v":1,"d":"1.00"},null,0,null,null,0]
[null,"ჭერები"]
[null,"ამსტრონგის შეკიდული ჭერის მოწყობა","მ2",{"v":97,"d":"97.00"},{"$nulls":3},0,0]
[null,"ამსტრონგის შეკიდული ჭერი ნესტგამძლე ფილებით, საკიდებითა და დამხმარე მასალებით","მ2",{"v":105,"d":"105.00"},null,0,null,null,0]
[null,"გარე სამუშაოები"]
[null,"არსებული წყლის ჭის ამოტუმბვა, ამოსუფთავება და კედლების ჩარეცხვა კერხერით","ლარი",{"v":1,"d":"1.00"},{"$nulls":3},{"$f":"D72*G72","v":0},{"$f":"F72+H72","v":0}]
[null,"წყლის რეზერვუარის გამორეცხვა 5მ სიმაღლეზე","ცალი",{"v":1,"d":"1.00"},{"$nulls":3},{"$f":"D73*G73","v":0},{"$f":"F73+H73","v":0}]
[null,"მიწის გაჭრა ხელით მილის სამონტაჟოდ სიღრმით 30სმ","მ",{"v":69,"d":"69.00"},{"$nulls":3},{"$f":"D74*G74","v":0},{"$f":"F74+H74","v":0}]
[null,"საკანალისაციო ჭისთვის ორმოს ამოჭრა ბეტონის რგოლების სამონტაჟოდ","ცალი",{"v":1,"d":"1.00"},{"$nulls":3},{"$f":"D75*G75","v":0},{"$f":"F75+H75","v":0}]
[null,"რკინა ბეტონის მილი (ჩამოსხმული რგოლები) მონტაჟით (დიამეტრი არანაკლებ 0.9მ; სიმაღლე 1 მ)","ცალი",{"v":2,"d":"2.00"},null,{"$f":"D76*E76","v":0},null,0,0]
[null,"საკანალიზაციო ჭის გადახურვის მოწყობა ლუქით (საჰაერო მილით)","ცალი",{"v":1,"d":"1.00"},null,0,null,0,0]
[null,"ჭაში ჩასაკიდი ელექტრონასოსის მოწყობა","ცალი",{"v":1,"d":"1.00"},null,{"$f":"D78*E78","v":0},null,{"$f":"D78*G78","v":0},{"$f":"F78+H78","v":0}]
[null,"32მმ-იანი მილის მონტაჟი ფიტინგებით","მ",{"v":65,"d":"65.00"},null,{"$f":"D79*E79","v":0},null,null,0]
[null,"ვენტილების მონტაჟი 32მმ","ცალი",{"v":2,"d":"2.00"},null,{"$f":"D80*E80","v":0},null,null,0]
[null,"32მმ-იანი მილების შეფუთვა ფოლგიენი მასალით","მ",{"v":10,"d":"10.00"},null,{"$f":"D81*E81","v":0},null,null,0]
[null,"საკანალიზაციო მილის მოერთება ჭასთან","ცალი",{"v":1,"d":"1.00"},{"$nulls":3},{"$f":"D82*G82","v":0},0]
[null,"კიბის საფეხურების შეფუთვა ბაზალტის ქვით","მ",{"v":56,"d":"56.00"},{"$nulls":3},{"$f":"D83*G83","v":0},0]
[null,"ბაზალტის ქვა სისქით 20მმ","მ2",{"v":15,"d":"15.00"},null,{"$f":"D84*E84","v":0},null,null,0]
[null,"წებო-ცემენტი 25კგ ყინვაგამძლე","ცალი",{"v":10,"d":"10.00"},null,{"$f":"D85*E85","v":0},null,null,0]
[null,"ქვის წებო ,,ბიზონკიტი,, ან მისი ანალოგი","ცალი",{"v":2,"d":"2.00"},null,{"$f":"D86*E86","v":0},null,null,0]
[null,"არსებული თუნუქის წყალამრიდი ღარების დაგრძელება","მ",{"v":20,"d":"20.00"},{"$nulls":3},{"$f":"D87*G87","v":0},0]
[null,"თუნუქის მილი 100მმ-იანი ფიტინგებით სისქით 0.5მმ","მ",{"v":22,"d":"22.00"},null,{"$f":"D88*E88","v":0},null,null,0]
[null,"სხვა მასალა","ლარი",{"v":1,"d":"1.00"},null,{"$f":"D89*E89","v":0},null,null,0]
[null,"კიბის ბაქნის მოპირკეთება ბაზალტის ფილებით","მ2",{"v":11.4,"d":"11.40"},{"$nulls":3},{"$f":"D90*G90","v":0},0]
[null,"ბაზალტის ქვა სისქით 20მმ","მ2",{"v":12.5,"d":"12.50"},null,{"$f":"D91*E91","v":0},null,null,0]
[null,"წებო-ცემენტი 25კგ ყინვაგამძლე","ცალი",{"v":8,"d":"8.00"},null,{"$f":"D92*E92","v":0},null,null,0]
[null,"შესასვლელის ჭერზე გუარდექსის ფილის მოწყობა","მ2",{"v":11.4,"d":"11.40"},{"$nulls":3},{"$f":"D93*G93","v":0},0]
[null,"გუარდექსის ფილა ლითონის კარკასზე","მ2",{"v":12,"d":"12.00"},null,{"$f":"D94*E94","v":0},null,null,0]
[null,"ჭერის და სვეტების დამუშავება ფითხით და შეღებვა წყალემულსიის საღებავით","მ2",{"v":45,"d":"45.00"},{"$nulls":3},{"$f":"D95*G95","v":0},0]
[null,"საფითხნი მასალა ფასადის","კგ",{"v":36,"d":"36.00"},null,{"$f":"D96*E96","v":0},null,null,0]
[null,"საღებავი წყალემულსიის ფასადის","კგ",{"v":27.5,"d":"27.50"},null,{"$f":"D97*E97","v":0},null,null,0]
[null,"სხვა მასალა","ლარი",{"v":1,"d":"1.00"},null,{"$f":"D98*E98","v":0},null,null,0]
[null,"შ.შ.მ პანდუსი"]
[null,"მიწის დამუშავება ხელით პანდუსის საძირკვლის მოსაწყობად","მ3",{"v":1,"d":"1.00"},{"$nulls":3},{"$f":"D100*G100","v":0},{"$f":"F100+H100","v":0}]
[null,"შშმ პირთათვის რკინა-ბეტონის პანდუსის მოწყობა","მ3",{"v":2.9,"d":"2.90"},{"$nulls":3},{"$f":"D101*G101","v":0},{"$f":"F101+H101","v":0}]
[null,"ბეტონი ბ25","მ3",{"v":3,"d":"3.00"},null,{"$f":"D102*E102","v":0},null,null,0]
[null,"არმატურა 12მმ","ტონა",0.27,null,0,null,null,0]
[null,"ყალიბის ფარი","მ2",{"v":9,"d":"9.00"},null,0,null,null,0]
[null,"ხის მასალა","მ3",{"v":0.2,"d":"0.20"},null,0,null,null,0]
[null,"ქვა-ღორღი ფრაქცია 10*25","მ3",{"v":4,"d":"4.00"},null,0,null,null,0]
[null,"სხვა მასალა","ლარი",{"v":1,"d":"1.00"},null,0,null,null,0]
[null,"შშმ პირთათვის პანდუსის მოპირკეთება ბაზალტის ფილებით","მ2",{"v":16,"d":"16.00"},{"$nulls":3},0,0]
[null,"ბაზალტის ქვა სისქით 20მმ","მ2",{"v":17.5,"d":"17.50"},null,0,null,null,0]
[null,"წებო-ცემენტი ყინვაგამძლე 25კგ","ცალი",{"v":7,"d":"7.00"},null,0,null,null,0]
[null,"სხვა მასალა","ლარი",{"v":1,"d":"1.00"},null,0,null,null,0]
[null,"ალუმინის მოაჯირის მოწყობა","მ",{"v":20,"d":"20.00"},{"$nulls":3},0,0]
[null,"ალუმინის მოაჯირი შშმ პირთათვის","მ",{"v":20,"d":"20.00"},null,0,null,null,0]
[null,"სხვა მასალა","ლარი",{"v":1,"d":"1.00"},null,0,null,null,0]
[null,"ელექტროობა"]
[null,"ავტომატების სამონტაჟო ყუთის მონტაჟი  12 ავტომატზე","ცალი",{"v":1,"d":"1.00"},null,{"$f":"D116*E116","v":0},null,{"$f":"D116*G116","v":0},{"$f":"F116+H116","v":0}]
[null,"სადენის მონტაჟი სპილენძის ძარღვით ორმაგი იზოლაციით კვეთით 3*4","მ",{"v":50,"d":"50.00"},null,0,null,0,0]
[null,"სადენის მონტაჟი სპილენძის ძარღვით ორმაგი იზოლაციით კვეთით 3*2.5","მ",{"v":180,"d":"180.00"},null,0,null,0,0]
[null,"სადენის მონტაჟი სპილენძის ძარღვით ორმაგი იზოლაციით კვეთით 2*1.5","მ",{"v":100,"d":"100.00"},null,0,null,0,0]
[null,"ჩამრთველის მონტაჟი ფარული გაყვანილობის ერთკლავიშიანი","ცალი",{"v":5,"d":"5.00"},null,0,null,0,0]
[null,"ჩამრთველის მონტაჟი ფარული გაყვანილობის ორკლავიშიანი","ცალი",{"v":2,"d":"2.00"},null,0,null,0,0]
[null,"როზეტის მონტაჟი ფარული გაყვანილობის დამიწებით","ცალი",{"v":25,"d":"25.00"},null,0,null,0,0]
[null,"გამწოვი ვენტილატორის მონტაჟი 100მმ-იანი ყელით","ცალი",{"v":1,"d":"1.00"},null,0,null,0,0]
[null,"ამსტრონგის ჭერის ლედსანათის მონტაჟი 60*60","ცალი",{"v":28,"d":"28.00"},null,0,null,0,0]
[null,"ავტომატის მონტაჟი 2*63","ცალი",{"v":1,"d":"1.00"},null,0,null,0,0]
[null,"ავტომატის მონტაჟი 1*32","ცალი",{"v":10,"d":"10.00"},null,0,null,0,0]
[null,"სხვა მასალა","ლარი",{"v":1,"d":"1.00"},null,0,null,null,0]
[null,"გათბობა"]
[null,"გათბობის ქვაბი 24კვტ რემკომპექტით","ცალი",{"v":1,"d":"1.00"},null,0,null,0,0]
[null,"მეტალოპლასტმასის მილების მონტაჟი 16მმ","მ",{"v":210,"d":"210.00"},null,0,null,0,0]
[null,"კოლექტორის მონტაჟი","სექცია",{"v":17,"d":"17.00"},null,0,null,0,0]
[null,"პანელური რადიატორი 1200*600","ცალი",{"v":3,"d":"3.00"},null,0,null,0,0]
[null,"პანელური რადიატორი 1000*600","ცალი",{"v":3,"d":"3.00"},null,0,null,0,0]
[null,"პანელური რადიატორი 800*600","ცალი",{"v":1,"d":"1.00"},null,0,null,0,0]
[null,"პანელური რადიატორი 600*600","ცალი",{"v":1,"d":"1.00"},null,0,null,0,0]
[null,"ვენტილების მონტაჟი მეტალოპლასტმასის მილებზე","ცალი",{"v":16,"d":"16.00"},null,0,null,0,0]
[null,"სხვა მასალა","ლარი",{"v":1,"d":"1.00"},null,0,null,null,0]
[null,"სანტექნიკა"]
[null,"100მმ-იანი საკანალიზაციო მილის მონტაჟი ფიტინგებით","მ",{"v":12,"d":"12.00"},null,0,null,0,0]
[null,"50მმ-იანი საკანალიზაციო მილის მონტაჟი ფიტინგებით","მ",{"v":32,"d":"32.00"},null,0,null,0,0]
[null,"აგურის კედლის გამოტეხვა 120*120","ცალი",{"v":5,"d":"5.00"},{"$nulls":3},0,0]
[null,"მინაბოჭკოვანი მილის მონტაჟი 20მმ ფიტინგებით","მ",{"v":48,"d":"48.00"},null,0,null,0,0]
[null,"არკოს ვენტილების მონტაჟი","ცალი",{"v":11,"d":"11.00"},null,0,null,null,0]
[null,"ფაიფურის ფეხიანი ხელსაბნის მონტაჟი","ცალი",{"v":5,"d":"5.00"},null,0,null,0,0]
[null,"წყლის შემრევის მონტაჟი","ცალი",{"v":5,"d":"5.00"},null,0,null,0,0]
[null,"50მმ-იანი სიფონის მონტაჟი","ცალი",{"v":5,"d":"5.00"},null,0,null,null,0]
[null,"უნიტაზის მონტაჟი კომპლექტი","ცალი",{"v":1,"d":"1.00"},null,0,null,0,0]
[null,"ტრაპის მონტაჟი 50მმ","ცალი",{"v":1,"d":"1.00"},null,0,null,0,0]
[null,"20მმ-იანი ვენტილის მონტაჟი","ცალი",{"v":2,"d":"2.00"},null,0,null,null,0]
[null,"სხვა მასალა","ლარი",{"v":1,"d":"1.00"},null,0,null,null,0]
[null,"ჯამი",{"$nulls":3},{"$f":"SUM(F1:F150)","v":0},null,{"$f":"SUM(H1:H150)","v":0},{"$f":"H151+F151","v":0}]
[null,"სატრანსპორტო ხარჯი",null,{"v":0.05,"d":"5%"},{"$nulls":4},{"$f":"F151*D152","v":0}]
[null,"ჯამი",{"$nulls":6},{"$f":"SUM(I151:I152)","v":0}]
[null,"ზედნადები ხარჯი",null,{"v":0.1,"d":"10%"},{"$nulls":4},{"$f":"I153*D154","v":0}]
[null,"ჯამი",{"$nulls":6},{"$f":"SUM(I153:I154)","v":0}]
[null,"გეგმიური დაგროვება",null,{"v":0.08,"d":"8%"},{"$nulls":4},{"$f":"I155*D156","v":0}]
[null,"ჯამი",{"$nulls":6},{"$f":"SUM(I155:I156)","v":0}]
[null,"გაუთვალისწინებელი ხარჯი",null,{"v":0.05,"d":"5%"},{"$nulls":4},{"$f":"I157*D158","v":0}]
[null,"სულ ხარჯთაღრიცხვით",{"$nulls":6},{"$f":"SUM(I157:I158)","v":0}]